bitfinex/quotes_SOLUSD_20220210
["timestamp","ask_amount","ask_price","bid_price","bid_amount"]
[1644515143491,56.85409529,111.93,111.87,4.468]
[1644515143692,56.85409529,111.93,111.86,0.024]
[1644515143892,211.563,111.95,111.86,0.024]
[1644515144091,2.23122154,111.97,111.86,0.024]
[1644515144293,15.28593222,112.0,111.83,0.024]
[1644515144492,10.71,111.98,111.87,0.024]
[1644515144694,25.99593222,111.97,111.83,0.024]
[1644515144892,3.16710676,111.96,111.83,0.024]
[1644515145293,10.71,111.95,111.83,0.024]
[1644515145492,12.94122154,111.95,111.83,0.024]
[1644515145694,13.19122154,111.95,111.83,0.024]
[1644515145893,10.96,111.95,111.83,0.024]
[1644515146393,15.64802154,111.94,111.83,0.024]
[1644515146594,11.16,111.93,111.8,0.024]
[1644515146793,0.45,111.9,111.78,0.024]
[1644515146994,10.71,111.89,111.77,0.024]
[1644515147195,11.16,111.88,111.73,0.024]
[1644515147394,24.1378,111.87,111.71,0.024]
[1644515147594,26.36902154,111.87,111.71,0.024]
[1644515147798,26.61902154,111.87,111.71,0.024]
[1644515147996,24.3878,111.87,111.71,0.024]
[1644515148196,24.3878,111.87,111.72,148.7175372]
[1644515148396,13.4264,111.85,111.73,0.024]
[1644515148600,10.71,111.84,111.73,0.024]
[1644515148996,2.23122154,111.83,111.73,0.024]
[1644515149197,10.71,111.82,111.73,0.024]
[1644515149597,10.96,111.82,111.69,0.024]
[1644515150000,2.23122154,111.81,111.67,1.27452604]
[1644515150199,2.23122154,111.81,111.68,0.024]
[1644515150200,10.71,111.8,111.68,0.024]
[1644515150500,2.23122154,111.79,111.67,4.498]
[1644515150698,10.71,111.78,111.68,0.024]
[1644515150899,10.71,111.78,111.67,0.024]
[1644515151101,10.71,111.78,111.67,4.499]
[1644515151302,10.96,111.78,111.68,0.024]
[1644515151499,13.4323,111.79,111.68,35.87844312]
[1644515151798,13.4323,111.79,111.7,34.22596452]
[1644515152000,13.4323,111.79,111.71,0.024]
[1644515152202,47.5276,111.85,111.71,0.024]
[1644515152541,11.97178419,111.88,111.73,40.34801147]
[1644515152731,10.71,111.88,111.74,4.496]
[1644515152931,10.71,111.88,111.75,40.09308546]
[1644515153133,10.71,111.88,111.76,0.024]
[1644515153330,10.71,111.88,111.77,4.471]
[1644515153532,24.1301,111.88,111.78,48.08335263]
[1644515153733,24.1301,111.88,111.78,48.05935263]
[1644515153931,24.1301,111.88,111.79,0.024]
[1644515154736,24.1301,111.88,111.75,0.024]
[1644515154934,25.39188419,111.88,111.75,0.024]
[1644515155140,25.64188419,111.88,111.75,0.024]
[1644515155540,3.94300573,111.87,111.75,0.024]
[1644515155743,12.42178419,111.86,111.75,0.024]
[1644515155938,13.4284,111.85,111.75,0.024]
[1644515156134,10.71,111.84,111.75,0.024]
[1644515156334,10.96,111.84,111.75,0.024]
[1644515157135,13.4284,111.83,111.75,0.024]
[1644515157335,24.3884,111.83,111.75,0.024]
[1644515157536,24.1384,111.83,111.75,0.024]
[1644515157738,1.71178419,111.87,111.76,1.71903936]
[1644515157739,11.97178419,111.87,111.76,1.71903936]
[1644515157938,80.39753145,111.9,111.73,41.92017041]
[1644515157939,1.26178419,111.89,111.77,47.51708422]
[1644515158136,1.26178419,111.89,111.77,47.49308422]
[1644515158344,13.4213,111.88,111.78,0.024]
[1644515159144,2.23122154,111.87,111.78,0.024]
[1644515159341,14.68308419,111.88,111.78,0.024]
[1644515159942,13.4213,111.88,111.78,0.024]
[1644515160543,2.53202567,111.87,111.77,45.01708422]
[1644515160744,47.27682567,111.87,111.77,45.01708422]
[1644515160947,44.7448,111.87,111.77,45.01708422]
[1644515161344,13.4213,111.88,111.77,45.01708422]
[1644515161547,13.4213,111.88,111.78,4.471]
[1644515162047,70.08153145,111.9,111.81,0.30211827]
[1644515162246,56.66563145,111.9,111.82,4.47]
[1644515162446,56.66563145,111.9,111.82,1.73028546]
[1644515162647,56.66563145,111.9,111.83,4.469]
[1644515162849,1.26178419,111.96,111.84,39.32539066]
[1644515163050,14.12189768,111.95,111.84,39.32539066]
[1644515163249,13.4103,111.95,111.84,39.57539066]
[1644515163452,1.26178419,111.96,111.85,10.71]
[1644515163650,88.06173882,112.01,111.85,10.71]
[1644515163651,1.26178419,111.97,111.85,12.44028546]
[1644515163875,69.41327089,112.01,111.88,0.3132763]
[1644515163876,1.26178419,111.98,111.88,0.3132763]
[1644515164076,1.26178419,111.98,111.89,37.40425104]
[1644515164276,1.26178419,111.99,111.89,39.1345365]
[1644515164471,1.26178419,112.0,111.9,1.73028546]
[1644515164872,1.26178419,112.0,111.91,10.71]
[1644515165071,59.96505508,112.01,111.91,11.0204534]
[1644515165271,1.26178419,112.02,111.92,1.72901677]
[1644515165472,1.26178419,112.02,111.93,38.32770244]
[1644515165674,2.76058937,112.01,111.89,10.71]
[1644515165976,2.76058937,112.01,111.86,219.7071]
[1644515165977,1.26178419,111.99,111.86,22.8057]
[1644515166173,1.26178419,112.0,111.87,6.19501677]
[1644515166373,13.4036,112.0,111.86,36.2121]
[1644515166572,1.26178419,111.99,111.84,10.71]
[1644515166771,0.45,111.97,111.79,130.00162604]
[1644515166973,1.26178419,111.95,111.85,36.6946468]
[1644515167373,1.51178419,111.95,111.85,36.6946468]
[1644515167673,4.35564751,111.94,111.85,36.6946468]
[1644515167872,24.3754,111.94,111.85,36.6946468]
[1644515168073,13.6654,111.94,111.85,36.6946468]
[1644515168673,13.4154,111.94,111.85,36.6946468]
[1644515169676,13.4084,111.96,111.86,6.19701677]
[1644515169977,13.4084,111.96,111.85,41.48460817]
[1644515170175,13.4084,111.96,111.85,37.01860817]
[1644515170478,13.4084,111.96,111.85,36.6946468]
[1644515170877,13.6584,111.96,111.85,36.6946468]
[1644515171275,1.26178419,112.0,111.89,0.32229896]
[1644515171477,1.26178419,112.03,111.9,4.78427253]
[1644515171678,1.26178419,112.03,111.9,2.05853786]
[1644515171876,32.11659853,112.02,111.91,40.18173274]
[1644515172076,33.37838272,112.02,111.89,4.78729896]
[1644515172282,33.37838272,112.02,111.83,10.71]
[1644515172283,1.26178419,111.99,111.83,10.71]
[1644515172684,19.02248308,111.99,111.83,10.71]
[1644515172980,13.4106,111.97,111.85,13.407]
[1644515173179,13.4106,111.97,111.86,47.50514316]
[1644515173379,13.6606,111.97,111.86,47.50514316]
[1644515173587,1.26178419,111.99,111.87,10.71]
[1644515173789,1.26178419,112.01,111.89,0.32328499]
[1644515173980,1.26178419,112.02,111.9,24.1116]
[1644515174180,21.00680201,112.02,111.91,40.59775654]
[1644515174379,1.26178419,112.02,111.91,40.59775654]
[1644515174582,1.26178419,112.03,111.88,0.32154292]
[1644515174781,2.23122154,112.02,111.87,72.7743]
[1644515174981,20.18481573,112.02,111.87,72.7743]
[1644515175182,13.407,111.98,111.87,72.7743]
[1644515175481,13.407,111.98,111.88,35.84500438]
[1644515175682,3.59675982,111.98,111.87,29.257]
[1644515175883,10.71,111.97,111.87,4.466]
[1644515176086,41.14817319,111.97,111.79,1.25052604]
[1644515176284,42.65995738,111.97,111.78,74.7313]
[1644515176484,42.65995738,111.97,111.8,0.024]
[1644515176684,13.413,111.95,111.8,13.4373]
[1644515176886,4.48973788,111.94,111.81,43.71939165]
[1644515177087,10.71,111.93,111.82,0.024]
[1644515177887,13.4151,111.93,111.82,0.024]
[1644515178186,13.4151,111.93,111.83,10.71]
[1644515178386,13.4151,111.93,111.84,48.67617105]
[1644515178588,13.4151,111.93,111.84,48.70017105]
[1644515179294,13.4138,111.92,111.84,0.024]
[1644515179490,13.4138,111.92,111.85,0.024]
[1644515179691,13.4138,111.92,111.79,0.024]
[1644515179892,11.16,111.91,111.79,0.024]
[1644515180106,26.2888496,111.91,111.79,0.024]
[1644515180397,13.4232,111.89,111.79,0.024]
[1644515180594,4.58434417,111.88,111.79,0.024]
[1644515180892,4.58434417,111.88,111.78,39.83481156]
[1644515181095,21.26655361,111.91,111.78,39.83481156]
[1644515181294,10.71,111.91,111.79,0.024]
[1644515181498,24.1298,111.91,111.79,0.024]
[1644515182093,20.96291894,111.9,111.79,0.024]
[1644515182594,31.67291894,111.9,111.79,0.024]
[1644515182795,32.93470313,111.9,111.79,0.024]
[1644515182994,13.4182,111.89,111.79,0.024]
[1644515183195,0.82583503,111.88,111.79,0.024]
[1644515183395,0.82583503,111.88,111.78,35.36581156]
[1644515183794,10.96,111.89,111.78,35.36581156]
[1644515183994,0.25,111.89,111.79,0.024]
[1644515184395,13.6669,111.89,111.79,0.024]
[1644515184798,35.40980398,111.89,111.79,0.024]
[1644515184995,13.6669,111.89,111.79,0.024]
[1644515186197,1.32519127,111.88,111.79,0.024]
[1644515186397,13.4205,111.87,111.78,35.36581156]
[1644515186595,20.4635627,111.86,111.78,35.36581156]
[1644515186800,13.4205,111.87,111.78,35.34181156]
[1644515187197,13.4205,111.87,111.78,35.36581156]
[1644515187799,32.35650509,111.87,111.78,35.36581156]
[1644515188197,13.6705,111.87,111.78,35.36581156]
[1644515188599,13.6705,111.87,111.78,37.11164345]
[1644515188999,13.6705,111.87,111.78,35.36581156]
[1644515189197,1.26178419,111.91,111.78,35.36581156]
[1644515189399,97.35020012,111.92,111.79,0.024]
[1644515189799,263.345428,111.89,111.79,0.024]
[1644515190398,263.345428,111.89,111.79,4.494]
[1644515190601,263.595428,111.89,111.79,4.494]
[1644515190998,263.345428,111.89,111.79,4.494]
[1644515191201,263.345428,111.89,111.8,34.21310217]
[1644515191405,222.611528,111.89,111.81,4.78805359]
[1644515191601,62.974928,111.89,111.85,0.31528418]
[1644515191799,1.26178419,111.96,111.87,37.0]
[1644515192001,1.26178419,111.97,111.86,4.469]
[1644515192199,1.26178419,111.97,111.87,47.42653743]
[1644515192400,1.26178419,111.98,111.88,88.63]
[1644515192701,55.8247032,111.99,111.89,4.466]
[1644515192900,1.26178419,111.99,111.89,4.466]
[1644515193103,1.26178419,111.99,111.88,4.466]
[1644515193302,40.27275759,111.98,111.88,4.466]
[1644515193505,40.27275759,111.98,111.84,10.71]
[1644515193506,14.67158419,111.96,111.82,10.734]
[1644515193700,1.26178419,111.95,111.82,0.024]
[1644515193904,1.26178419,111.94,111.82,0.024]
[1644515194101,11.97178419,111.94,111.82,0.024]
[1644515194300,35.75270858,111.93,111.82,37.12516288]
[1644515194500,13.4159,111.92,111.82,37.12516288]
[1644515194704,39.0109734,111.91,111.82,37.12516288]
[1644515195601,14.67768419,111.92,111.82,37.12516288]
[1644515195801,1.26178419,111.96,111.82,48.15426932]
[1644515196005,1.26178419,111.97,111.83,1.74579865]
[1644515196202,1.26178419,111.96,111.83,1.74579865]
[1644515196406,1.26178419,111.96,111.84,10.71]
[1644515196603,1.26178419,111.96,111.85,58.03634072]
[1644515196802,1.26178419,111.96,111.86,4.468]
[1644515197004,14.66908419,111.97,111.86,15.178]
[1644515197204,14.66908419,111.97,111.86,10.71]
[1644515197603,47.32905979,111.96,111.87,38.93694525]
[1644515197902,14.66908419,111.97,111.87,38.93694525]
[1644515198103,13.4073,111.97,111.87,38.93694525]
[1644515198602,14.66678419,111.99,111.87,38.93694525]
[1644515198803,36.84061538,111.97,111.87,38.93694525]
[1644515199603,50.24771538,111.97,111.84,4.466]
[1644515199805,1.26178419,111.96,111.84,10.71]
[1644515200005,36.27883119,111.97,111.81,24.9255]
[1644515200006,1.26178419,111.95,111.81,24.9255]
[1644515200208,1.26178419,111.94,111.81,24.9255]
[1644515200404,1.26178419,111.93,111.81,24.9255]
[1644515200610,40.44663498,111.92,111.82,44.57601599]
[1644515200806,13.4173,111.91,111.8,0.024]
[1644515201006,14.67908419,111.91,111.8,0.024]
[1644515201810,35.57883119,111.9,111.8,0.024]
[1644515202010,1.26178419,111.91,111.8,88.654]
[1644515202209,1.26178419,111.93,111.82,0.30002904]
[1644515202509,1.26178419,111.95,111.83,15.179]
[1644515202709,1.26178419,111.96,111.83,10.71]
[1644515202911,34.19326162,111.95,111.84,37.46530682]
[1644515203109,35.45504581,111.95,111.84,37.46530682]
[1644515203312,35.70504581,111.95,111.84,37.46530682]
[1644515203713,1.26178419,111.94,111.84,37.46530682]
[1644515204012,47.85276162,111.95,111.84,37.46530682]
[1644515204013,1.26178419,111.93,111.84,37.46530682]
[1644515204215,1.26178419,111.94,111.84,37.46530682]
[1644515204412,1.26178419,111.96,111.85,10.71]
[1644515204911,46.30463642,111.95,111.86,44.70607581]
[1644515205312,1.26178419,111.94,111.81,10.71]
[1644515205513,1.26178419,111.93,111.81,10.71]
[1644515206014,13.4136,111.92,111.81,24.1225]
[1644515206214,13.4136,111.92,111.81,10.71]
[1644515206417,13.4136,111.92,111.8,0.024]
[1644515206418,28.45904556,111.91,111.8,0.024]
[1644515206618,40.88082975,111.91,111.8,0.024]
[1644515206817,0.45,111.88,111.78,0.024]
[1644515207016,12.42178419,111.88,111.76,0.024]
[1644515207213,20.94278419,111.88,111.74,0.024]
[1644515207415,36.94175766,111.87,111.74,0.024]
[1644515207614,1.71178419,111.84,111.74,0.024]
[1644515207817,1.79,111.81,111.71,0.024]
[1644515208015,10.71,111.81,111.69,1.27452604]
[1644515208215,10.71,111.81,111.67,1.25052604]
[1644515208415,24.1426,111.81,111.68,41.19227545]
[1644515208617,13.4326,111.81,111.69,4.474]
[1644515208818,13.4326,111.81,111.7,0.024]
[1644515209026,13.4326,111.81,111.71,4.474]
[1644515209421,43.28706946,111.8,111.72,36.00166904]
[1644515209618,43.28706946,111.8,111.72,36.02566904]
[1644515209619,13.4299,111.79,111.72,36.02566904]
[1644515211122,37.06079461,111.81,111.72,36.02566904]
[1644515211522,37.06079461,111.81,111.72,0.024]
[1644515211926,37.06079461,111.81,111.7,0.024]
[1644515212326,37.31079461,111.81,111.7,0.024]
[1644515212542,37.31079461,111.81,111.7,42.65502549]
[1644515212740,37.31079461,111.81,111.71,0.024]
[1644515213040,37.31079461,111.81,111.73,46.33778419]
[1644515213640,82.07519461,111.81,111.71,0.024]
[1644515214043,82.07519461,111.81,111.68,0.024]
[1644515214643,82.07519461,111.81,111.68,42.01829679]
[1644515214944,82.07519461,111.81,111.68,41.99429679]
[1644515215144,82.07519461,111.81,111.69,0.024]
[1644515215344,45.0144,111.81,111.69,0.024]
[1644515215544,45.0144,111.81,111.7,1.74148776]
[1644515215745,45.0144,111.81,111.71,4.498]
[1644515216244,35.43646172,111.81,111.72,38.52460265]
[1644515216545,35.43646172,111.81,111.72,38.54860265]
[1644515216948,35.43646172,111.81,111.72,0.024]
[1644515217145,0.45,111.8,111.69,0.024]
[1644515217348,13.4345,111.79,111.69,0.024]
[1644515217645,22.2535,111.79,111.67,0.024]
[1644515218048,39.32722026,111.78,111.67,45.69348925]
[1644515218246,39.32722026,111.78,111.68,0.024]
[1644515218847,84.10912026,111.78,111.68,0.024]
[1644515219648,84.35912026,111.78,111.68,0.024]
[1644515220446,13.4345,111.79,111.67,45.19348925]
[1644515220650,13.4345,111.79,111.68,2.0540597]
[1644515220848,79.5908,111.85,111.69,10.71]
[1644515221347,79.5908,111.85,111.7,1.74608522]
[1644515221548,45.85863437,111.84,111.71,54.0669353]
[1644515222151,29.3810476,111.82,111.71,54.0669353]
[1644515222349,29.3810476,111.82,111.71,43.3569353]
[1644515223749,74.1411476,111.82,111.71,43.3569353]
[1644515224249,74.3911476,111.82,111.71,43.3569353]
[1644515224653,0.25,111.82,111.71,45.10302052]
[1644515224851,0.25,111.82,111.72,13.4234]
[1644515225050,13.4241,111.83,111.72,13.4234]
[1644515225252,13.4241,111.83,111.72,111.9]
[1644515225453,13.8741,111.83,111.72,111.9]
[1644515225652,13.8741,111.83,111.71,47.8299353]
[1644515225653,46.95635466,111.82,111.73,40.20532346]
[1644515225853,46.50635466,111.82,111.73,40.20532346]
[1644515226253,91.52365466,111.82,111.73,40.20532346]
[1644515226852,13.4241,111.83,111.73,40.20532346]
[1644515227855,36.70732229,111.82,111.73,40.20532346]
[1644515228455,81.46562229,111.82,111.69,4.473]
[1644515228657,81.46562229,111.82,111.68,34.878]
[1644515228955,24.1405,111.81,111.68,24.168]
[1644515229556,24.1405,111.81,111.69,39.13850983]
[1644515229760,45.0083,111.82,111.69,39.13850983]
[1644515229956,45.0083,111.82,111.69,138.47850983]
[1644515230156,44.7583,111.82,111.69,138.47850983]
[1644515230358,13.4269,111.83,111.7,2.04885512]
[1644515230657,35.20966578,111.86,111.74,13.4218]
[1644515230857,1.26178419,111.89,111.75,4.472]
[1644515231057,13.4211,111.85,111.75,4.472]
[1644515231258,1.26178419,111.89,111.76,88.63]
[1644515231459,390.5899387,111.91,111.77,15.181]
[1644515231460,1.26178419,111.9,111.77,15.181]
[1644515231658,336.03011823,111.91,111.79,45.01567815]
[1644515231859,48.01934481,111.9,111.8,15.18]
[1644515232362,48.01934481,111.9,111.77,22.5255]
[1644515232558,48.46934481,111.9,111.77,4.47]
[1644515232759,1.71178419,111.89,111.74,11.01339461]
[1644515232960,1.26178419,111.88,111.74,11.01339461]
[1644515233161,1.26178419,111.88,111.73,47.2674]
[1644515233162,41.90512135,111.88,111.75,47.02000748]
[1644515233360,1.71178419,111.87,111.75,47.02000748]
[1644515233561,57.78176401,111.86,111.75,47.02000748]
[1644515233763,59.0435482,111.86,111.75,47.02000748]
[1644515234161,13.426,111.85,111.75,47.02000748]
[1644515234361,28.16791796,111.84,111.75,47.02000748]
[1644515234561,72.92111796,111.84,111.72,24.1443]
[1644515234761,72.92111796,111.84,111.71,4.472]
[1644515234964,1.26178419,111.83,111.71,4.472]
[1644515235163,74.18290215,111.84,111.71,15.182]
[1644515235361,74.18290215,111.84,111.72,1.74608522]
[1644515235563,74.18290215,111.84,111.73,40.19989423]
[1644515236562,13.426,111.83,111.72,0.024]
[1644515236764,0.45,111.78,111.65,49.26443785]
[1644515236965,0.45,111.76,111.65,113.17714138]
[1644515237166,0.45,111.71,111.57,3.77348193]
[1644515237373,0.45,111.71,111.54,47.18999644]
[1644515237374,0.45,111.68,111.59,0.024]
[1644515237565,1.79,111.68,111.57,47.37975893]
[1644515237765,30.70930498,111.66,111.57,47.40375893]
[1644515237963,4.479,111.65,111.58,0.024]
[1644515238166,11.16,111.64,111.55,0.024]
[1644515238365,4.48,111.63,111.54,0.44809644]
[1644515238571,10.71,111.63,111.54,0.44809644]
[1644515239166,55.5477,111.67,111.54,44.55749972]
[1644515239365,55.5477,111.67,111.55,4.48]
[1644515239566,55.5477,111.67,111.55,0.024]
[1644515239767,13.4479,111.66,111.56,0.024]
[1644515239967,13.4479,111.66,111.55,0.024]
[1644515240171,13.4479,111.66,111.56,38.26448649]
[1644515240368,46.30138794,111.69,111.56,38.28848649]
[1644515240568,4.48,111.72,111.61,0.30336487]
[1644515240769,4.477,111.78,111.61,0.30336487]
[1644515240967,24.9442,111.77,111.61,0.30336487]
[1644515241168,4.476,111.76,111.61,0.30336487]
[1644515241370,10.71,111.75,111.59,24.3331]
[1644515241570,28.81191107,111.73,111.6,45.98153569]
[1644515241769,39.52191107,111.73,111.6,45.98153569]
[1644515242371,53.41321107,111.73,111.57,4.476]
[1644515242569,0.45,111.71,111.58,0.024]
[1644515242773,10.71,111.7,111.58,0.024]
[1644515242968,10.71,111.7,111.56,0.024]
[1644515243170,4.479,111.69,111.56,0.024]
[1644515243368,49.97391402,111.68,111.56,40.26297199]
[1644515243569,10.71,111.67,111.57,0.024]
[1644515244373,10.71,111.71,111.57,0.024]
[1644515244571,4.478,111.7,111.57,0.024]
[1644515244771,28.6311,111.7,111.57,0.024]
[1644515244974,45.21712196,111.69,111.57,0.024]
[1644515245274,10.71,111.68,111.57,0.024]
[1644515245571,26.22288078,111.67,111.57,0.024]
[1644515245773,10.71,111.66,111.57,0.024]
[1644515245973,45.21712196,111.65,111.56,40.23897199]
[1644515246184,10.71,111.69,111.56,40.23897199]
[1644515246409,10.71,111.69,111.57,4.503]
[1644515246608,10.71,111.69,111.58,0.024]
[1644515247009,42.11672748,111.68,111.58,0.024]
[1644515247212,13.4445,111.67,111.58,111.924]
[1644515247411,87.66166802,111.71,111.58,0.024]
[1644515247613,87.66166802,111.71,111.59,0.024]
[1644515247816,87.66166802,111.71,111.57,4.479]
[1644515248013,78.3607,111.71,111.58,0.024]
[1644515248214,35.0014679,111.7,111.58,41.401878]
[1644515248415,35.0014679,111.7,111.59,0.024]
[1644515248814,13.4408,111.7,111.59,0.024]
[1644515249014,4.479,111.73,111.62,0.3035734]
[1644515249213,44.7997,111.74,111.62,0.3035734]
[1644515249415,13.77926851,111.77,111.62,4.477]
[1644515249618,10.71,111.76,111.59,33.9544]
[1644515249818,46.79389021,111.75,111.59,24.1721]
[1644515250016,10.71,111.74,111.57,4.476]
[1644515250319,0.45,111.73,111.58,0.024]
[1644515250515,10.71,111.72,111.58,0.024]
[1644515250714,10.71,111.72,111.57,4.0]
[1644515250918,28.6317,111.72,111.58,41.03692116]
[1644515251116,28.6317,111.72,111.59,0.024]
[1644515251117,24.1537,111.72,111.59,0.024]
[1644515251918,4.478,111.74,111.59,0.024]
[1644515252119,35.93118763,111.76,111.62,13.73831816]
[1644515252120,13.4356,111.75,111.62,13.73831816]
[1644515252321,35.50881511,111.74,111.64,47.82967661]
[1644515252719,35.50881511,111.74,111.64,47.85367661]
[1644515252922,4.476,111.75,111.64,47.82967661]
[1644515253120,0.25,111.74,111.65,0.024]
[1644515253321,13.6869,111.74,111.64,47.82967661]
[1644515253521,10.71,111.76,111.64,47.82967661]
[1644515253820,38.57624589,111.75,111.65,0.024]
[1644515254021,32.86375685,111.73,111.64,47.82967661]
[1644515254224,15.186,111.72,111.63,0.024]
[1644515254427,15.186,111.72,111.6,23.0201]
[1644515254428,0.45,111.7,111.61,0.024]
[1644515254727,0.45,111.68,111.59,0.024]
[1644515254929,10.71,111.67,111.56,0.024]
[1644515255126,10.71,111.66,111.55,0.024]
[1644515255729,0.25,111.71,111.55,0.024]
[1644515255730,0.25,111.71,111.56,4.78756734]
[1644515255927,0.25,111.71,111.57,0.024]
[1644515256130,4.478,111.7,111.57,0.024]
[1644515256328,47.41841747,111.7,111.57,0.024]
[1644515256527,24.02158527,111.68,111.57,0.024]
[1644515256929,47.9988,111.71,111.58,46.5929127]
[1644515257130,27.5188,111.74,111.59,0.024]
[1644515257332,23.0398,111.74,111.6,4.477]
[1644515257553,23.0398,111.74,111.61,0.024]
[1644515257754,23.0398,111.74,111.61,10.734]
[1644515257956,23.0398,111.74,111.62,42.94203065]
[1644515258257,49.5827,111.76,111.64,44.15903958]
[1644515258454,49.5827,111.76,111.65,0.024]
[1644515258656,50.0327,111.76,111.65,0.024]
[1644515258955,0.45,111.75,111.65,0.024]
[1644515259154,37.62738762,111.74,111.64,44.15903958]
[1644515259355,13.4344,111.75,111.64,44.15903958]
[1644515259558,17.9104,111.75,111.64,44.15903958]
[1644515259756,13.6844,111.75,111.64,44.15903958]
[1644515259955,13.4344,111.75,111.64,44.15903958]
[1644515261157,13.4344,111.75,111.65,4.476]
[1644515261359,13.4344,111.75,111.65,0.024]
[1644515261561,13.4344,111.75,111.64,44.18303958]
[1644515261758,13.8844,111.75,111.64,44.15903958]
[1644515261957,45.73698493,111.74,111.64,44.15903958]
[1644515262158,13.4383,111.72,111.64,44.15903958]
[1644515263061,10.96,111.74,111.64,44.15903958]
[1644515263264,0.25,111.74,111.64,44.15903958]
[1644515264065,37.46760858,111.74,111.64,44.15903958]
[1644515264665,50.90320858,111.74,111.64,44.15903958]
[1644515264869,50.90320858,111.74,111.62,0.024]
[1644515265076,0.45,111.71,111.62,0.024]
[1644515265274,15.637,111.7,111.61,0.024]
[1644515265576,10.71,111.69,111.6,4.476]
[1644515265974,34.22239416,111.68,111.61,48.71508954]
[1644515266572,47.66589416,111.68,111.61,48.71508954]
[1644515267174,52.14389416,111.68,111.57,0.024]
[1644515267377,62.85389416,111.68,111.57,0.024]
[1644515267574,9.30336049,111.67,111.57,0.024]
[1644515267776,17.926,111.66,111.57,0.024]
[1644515267975,17.926,111.66,111.56,22.934]
[1644515268176,52.44993603,111.66,111.57,37.94768291]
[1644515268379,13.447,111.66,111.57,37.97168291]
[1644515269178,13.447,111.66,111.57,37.47168291]
[1644515269378,38.99237463,111.66,111.57,37.47168291]
[1644515269979,39.24237463,111.66,111.57,37.47168291]
[1644515270178,13.697,111.66,111.57,37.47168291]
[1644515270379,13.697,111.66,111.57,36.97168291]
[1644515271779,55.5229,111.7,111.57,36.97168291]
[1644515271979,10.71,111.7,111.59,0.3243976]
[1644515272181,24.6392,111.74,111.6,4.502]
[1644515272380,13.77980017,111.76,111.63,0.31809036]
[1644515272579,445.66631921,111.77,111.64,0.024]
[1644515272781,41.60281806,111.75,111.64,0.024]
[1644515273182,41.60281806,111.75,111.63,0.024]
[1644515273385,41.60281806,111.75,111.65,39.30347725]
[1644515273589,41.85281806,111.75,111.65,39.30347725]
[1644515273783,13.6838,111.75,111.65,39.30347725]
[1644515274584,4.476,111.74,111.64,0.024]
[1644515274785,13.4408,111.73,111.63,0.024]
[1644515274988,103.817,111.72,111.6,0.024]
[1644515275184,11.16,111.71,111.58,0.024]
[1644515275383,4.478,111.7,111.58,0.024]
[1644515275583,54.91115197,111.69,111.58,0.024]
[1644515275989,6.70922154,111.68,111.58,0.024]
[1644515276186,0.45,111.63,111.58,0.024]
[1644515276388,0.45,111.63,111.48,47.4668]
[1644515276389,15.19,111.62,111.55,0.024]
[1644515276587,15.19,111.62,111.51,0.024]
[1644515276786,15.19,111.62,111.49,0.024]
[1644515276986,25.73885077,111.61,111.49,38.25115852]
[1644515277190,48.71179001,111.59,111.5,0.024]
[1644515278188,59.42179001,111.59,111.5,0.024]
[1644515278493,63.90279001,111.59,111.5,0.024]
[1644515278889,28.6459,111.59,111.5,0.024]
[1644515279089,13.4549,111.59,111.5,4.505]
[1644515279289,13.4549,111.59,111.51,0.024]
[1644515279488,13.4549,111.59,111.5,0.024]
[1644515279890,45.87786612,111.58,111.5,0.024]
[1644515280089,13.4569,111.57,111.5,0.024]
[1644515280289,0.25,111.58,111.5,0.024]
[1644515280692,10.71,111.61,111.5,0.024]